[Event "Early-Titled-Tuesday-Blitz-November-28-2023"]
[Site "Chess.com"]
[Date "2023.11.28"]
[Round "11"]
[White "Ariadna_Atreides"]
[Black "Dinosaurio_1975"]
[Result "0-1"]
[WhiteElo "2184"]
[BlackElo "2523"]
[TimeControl "180+1"]
[EndTime "10:13:14 PST"]
[Termination "Dinosaurio_1975 won on time"]

1. d4 {[%clk 0:03:00.9]} 1... d5 {[%clk 0:02:56.3]} 2. Nf3 {[%clk 0:03:00.5]}
2... e6 {[%clk 0:02:54.9]} 3. e3 {[%clk 0:02:59.9]} 3... Nf6 {[%clk 0:02:54.7]}
4. Bd3 {[%clk 0:03:00.2]} 4... Be7 {[%clk 0:02:55.3]} 5. Nbd2 {[%clk 0:03:00]}
5... O-O {[%clk 0:02:56.2]} 6. O-O {[%clk 0:02:59.9]} 6... b6 {[%clk 0:02:56.7]}
7. b3 {[%clk 0:03:00.1]} 7... Bb7 {[%clk 0:02:57.2]} 8. Bb2 {[%clk 0:03:00.3]}
8... Nbd7 {[%clk 0:02:57.8]} 9. c4 {[%clk 0:02:59.8]} 9... c5 {[%clk 0:02:54.2]}
10. cxd5 {[%clk 0:02:58.4]} 10... Nxd5 {[%clk 0:02:52.6]} 11. Rc1 {[%clk
0:02:34]} 11... Rc8 {[%clk 0:02:52]} 12. Qe2 {[%clk 0:02:32.1]} 12... cxd4
{[%clk 0:02:43.7]} 13. Rxc8 {[%clk 0:02:30]} 13... Qxc8 {[%clk 0:02:43.1]} 14.
Rc1 {[%clk 0:02:25.1]} 14... Qa8 {[%clk 0:02:09.4]} 15. Bxd4 {[%clk 0:02:10.9]}
15... Nb4 {[%clk 0:02:02.5]} 16. Bb1 {[%clk 0:02:02.5]} 16... Rc8 {[%clk
0:02:01.1]} 17. Qd1 {[%clk 0:01:51.1]} 17... Bf6 {[%clk 0:01:39.8]} 18. h3
{[%clk 0:01:46.2]} 18... Rxc1 {[%clk 0:01:29.4]} 19. Qxc1 {[%clk 0:01:45.5]}
19... Bxd4 {[%clk 0:01:30]} 20. exd4 {[%clk 0:01:44.9]} 20... Qb8 {[%clk
0:01:26]} 21. a3 {[%clk 0:01:42.8]} 21... Nd5 {[%clk 0:01:24.5]} 22. Qc2 {[%clk
0:01:39.1]} 22... g6 {[%clk 0:01:21]} 23. Nc4 {[%clk 0:01:28.4]} 23... Nf4
{[%clk 0:00:55.9]} 24. Qd1 {[%clk 0:01:11.8]} 24... Nf6 {[%clk 0:00:51.8]} 25.
Nce5 {[%clk 0:01:10.5]} 25... Qd6 {[%clk 0:00:50]} 26. b4 {[%clk 0:00:54.5]}
26... Nd7 {[%clk 0:00:35.7]} 27. Qa4 {[%clk 0:00:32.5]} 27... Nxe5 {[%clk
0:00:29.1]} 28. Nxe5 {[%clk 0:00:30.6]} 28... Qe7 {[%clk 0:00:19.2]} 29. Qxa7
{[%clk 0:00:23.6]} 29... Qc7 {[%clk 0:00:13.1]} 30. Kh2 {[%clk 0:00:10.8]} 30...
Ne2 {[%clk 0:00:06.3]} 31. Be4 {[%clk 0:00:09.5]} 31... Nxd4 {[%clk 0:00:06.6]}
32. Qxb7 {[%clk 0:00:08.8]} 32... Qxe5+ {[%clk 0:00:07]} 33. g3 {[%clk
0:00:07.1]} 33... b5 {[%clk 0:00:05.2]} 34. Qa8+ {[%clk 0:00:05.8]} 34... Kg7
{[%clk 0:00:05]} 35. Kg2 {[%clk 0:00:06.2]} 35... h5 {[%clk 0:00:03.8]} 36. Qb7
{[%clk 0:00:04.5]} 36... h4 {[%clk 0:00:03.4]} 37. g4 {[%clk 0:00:03.9]} 37...
Qf4 {[%clk 0:00:03.2]} 38. Bf3 {[%clk 0:00:03.6]} 38... Nxf3 {[%clk 0:00:02.8]}
39. Qxf3 {[%clk 0:00:03.4]} 39... Qd4 {[%clk 0:00:03.6]} 40. Qb7 {[%clk
0:00:02.2]} 40... Qe5 {[%clk 0:00:04]} 41. Qb6 {[%clk 0:00:01.9]} 41... Kh6
{[%clk 0:00:03.9]} 42. Kf1 {[%clk 0:00:02]} 42... g5 {[%clk 0:00:03.1]} 43. Kg2
{[%clk 0:00:01.7]} 43... Qe4+ {[%clk 0:00:03.1]} 44. Kh2 {[%clk 0:00:01.4]}
44... Qf4+ {[%clk 0:00:03]} 45. Kg2 {[%clk 0:00:01.8]} 45... Kg6 {[%clk
0:00:03.6]} 46. Qb7 {[%clk 0:00:01.6]} 46... Qe5 {[%clk 0:00:02.9]} 47. Kf1
{[%clk 0:00:01.4]} 47... f6 {[%clk 0:00:03.8]} 48. Kg2 {[%clk 0:00:01.8]} 48...
f5 {[%clk 0:00:02.4]} 49. Kf1 {[%clk 0:00:02.4]} 49... fxg4 {[%clk 0:00:02.3]}
50. hxg4 {[%clk 0:00:02.6]} 50... h3 {[%clk 0:00:02.9]} 51. Qh1 {[%clk
0:00:02.7]} 51... h2 {[%clk 0:00:02.4]} 52. Qg2 {[%clk 0:00:02.8]} 52... Qf4
{[%clk 0:00:02.4]} 53. Qh1 {[%clk 0:00:03.1]} 53... e5 {[%clk 0:00:03.3]} 54.
Kg2 {[%clk 0:00:03.5]} 54... Kf7 {[%clk 0:00:04]} 55. Qxh2 {[%clk 0:00:03.5]}
55... Qxg4+ {[%clk 0:00:04.7]} 56. Qg3 {[%clk 0:00:03.5]} 56... Qe4+ {[%clk
0:00:04.9]} 57. Qf3+ {[%clk 0:00:03.5]} 57... Qxf3+ {[%clk 0:00:04.2]} 58. Kxf3
{[%clk 0:00:04.4]} 58... Kf6 {[%clk 0:00:04.5]} 59. Ke4 {[%clk 0:00:02.3]} 59...
Ke6 {[%clk 0:00:04.8]} 60. f3 {[%clk 0:00:02.3]} 60... Kf6 {[%clk 0:00:05.3]}
61. Kd5 {[%clk 0:00:02.1]} 61... Kf5 {[%clk 0:00:06]} 62. a4 {[%clk 0:00:02.3]}
62... bxa4 {[%clk 0:00:04.4]} 63. b5 {[%clk 0:00:03.1]} 63... a3 {[%clk
0:00:05]} 64. b6 {[%clk 0:00:03.7]} 64... a2 {[%clk 0:00:05.4]} 65. b7 {[%clk
0:00:04.3]} 65... a1=Q {[%clk 0:00:06]} 66. b8=Q {[%clk 0:00:04.3]} 66... Qd4+
{[%clk 0:00:06.3]} 67. Kc6 {[%clk 0:00:04.5]} 67... Qc4+ {[%clk 0:00:07]} 68.
Kd6 {[%clk 0:00:03.9]} 68... Qd4+ {[%clk 0:00:06.9]} 69. Ke7 {[%clk 0:00:04]}
69... Qc5+ {[%clk 0:00:06.7]} 70. Kf7 {[%clk 0:00:03.8]} 70... Qd5+ {[%clk
0:00:06.2]} 71. Ke7 {[%clk 0:00:03.4]} 71... Qxf3 {[%clk 0:00:06.6]} 72. Qc8+
{[%clk 0:00:02.8]} 72... Kf4 {[%clk 0:00:07.5]} 73. Qf8+ {[%clk 0:00:02.8]}
73... Kg4 {[%clk 0:00:07.4]} 74. Qc8+ {[%clk 0:00:02.2]} 74... Qf5 {[%clk
0:00:08]} 75. Qc4+ {[%clk 0:00:02.3]} 75... e4 {[%clk 0:00:08.8]} 76. Kd6 {[%clk
0:00:02]} 76... Qf4+ {[%clk 0:00:08.7]} 77. Kd5 {[%clk 0:00:01.7]} 77... e3
{[%clk 0:00:09.3]} 78. Qe2+ {[%clk 0:00:01.6]} 78... Qf3+ {[%clk 0:00:10.2]} 0-1

[Event "Early-Titled-Tuesday-Blitz-November-28-2023"]
[Site "Chess.com"]
[Date "2023.11.28"]
[Round "11"]
[White "jens1102"]
[Black "vasblesk"]
[Result "0-1"]
[WhiteElo "2642"]
[BlackElo "2831"]
[TimeControl "180+1"]
[EndTime "10:13:20 PST"]
[Termination "vasblesk won by resignation"]

1. c4 {[%clk 0:03:00.4]} 1... e5 {[%clk 0:02:59.7]} 2. g3 {[%clk 0:03:00.9]}
2... c6 {[%clk 0:02:59]} 3. Nf3 {[%clk 0:03:00.6]} 3... e4 {[%clk 0:02:58.7]} 4.
Nd4 {[%clk 0:03:01.3]} 4... d5 {[%clk 0:02:58.6]} 5. d3 {[%clk 0:03:01.9]} 5...
exd3 {[%clk 0:02:56.4]} 6. Qxd3 {[%clk 0:02:57.4]} 6... dxc4 {[%clk 0:02:55.6]}
7. Qxc4 {[%clk 0:02:57.4]} 7... Nf6 {[%clk 0:02:55.8]} 8. Nc3 {[%clk 0:02:56.9]}
8... Bd6 {[%clk 0:02:53.6]} 9. Bg2 {[%clk 0:02:57]} 9... O-O {[%clk 0:02:53.3]}
10. O-O {[%clk 0:02:57.6]} 10... Nbd7 {[%clk 0:02:52.8]} 11. Rd1 {[%clk
0:02:56]} 11... Ne5 {[%clk 0:02:51.9]} 12. Qb3 {[%clk 0:02:55.4]} 12... Qe7
{[%clk 0:02:50.5]} 13. Bg5 {[%clk 0:02:55.6]} 13... Neg4 {[%clk 0:02:41.3]} 14.
h3 {[%clk 0:02:49.5]} 14... h6 {[%clk 0:02:40.9]} 15. Bh4 {[%clk 0:02:27.6]}
15... g5 {[%clk 0:02:38.7]} 16. Bxg5 {[%clk 0:02:26.4]} 16... hxg5 {[%clk
0:02:39.6]} 17. hxg4 {[%clk 0:02:27]} 17... Bxg4 {[%clk 0:02:19]} 18. Rd3 {[%clk
0:02:19.9]} 18... Bc5 {[%clk 0:02:12.5]} 19. Rad1 {[%clk 0:02:14.7]} 19... Rad8
{[%clk 0:02:08]} 20. Re3 {[%clk 0:02:04]} 20... Qc7 {[%clk 0:02:02.6]} 21. Ne4
{[%clk 0:02:03.1]} 21... Nxe4 {[%clk 0:01:17.5]} 22. Rxe4 {[%clk 0:02:04]} 22...
Bh5 {[%clk 0:01:16]} 23. Nf5 {[%clk 0:02:00.7]} 23... Rxd1+ {[%clk 0:00:44.9]}
24. Qxd1 {[%clk 0:02:01.6]} 24... Bg6 {[%clk 0:00:44.7]} 25. g4 {[%clk
0:01:47.1]} 25... Qb6 {[%clk 0:00:42]} 26. e3 {[%clk 0:01:23.1]} 26... Qxb2
{[%clk 0:00:38.4]} 27. Ne7+ {[%clk 0:01:16.1]} 27... Bxe7 {[%clk 0:00:36.9]} 28.
Rxe7 {[%clk 0:01:17]} 28... Qb4 {[%clk 0:00:34.8]} 29. Rc7 {[%clk 0:01:10.7]}
29... a5 {[%clk 0:00:29.5]} 30. Rd7 {[%clk 0:01:09.5]} 30... Re8 {[%clk
0:00:19]} 31. Rd8 {[%clk 0:01:08.6]} 31... Rxd8 {[%clk 0:00:07.7]} 32. Qxd8+
{[%clk 0:01:09.5]} 32... Kg7 {[%clk 0:00:08.4]} 33. Qxg5 {[%clk 0:01:10.4]}
33... Qb1+ {[%clk 0:00:08.6]} 34. Kh2 {[%clk 0:01:07]} 34... Qxa2 {[%clk
0:00:08.9]} 35. f4 {[%clk 0:01:06.4]} 35... f6 {[%clk 0:00:09.5]} 36. Qc5 {[%clk
0:01:04.3]} 36... Bf7 {[%clk 0:00:06.2]} 37. g5 {[%clk 0:01:02.6]} 37... Qb2
{[%clk 0:00:04.1]} 38. Qe7 {[%clk 0:01:00]} 38... fxg5 {[%clk 0:00:03.2]} 39.
Qxg5+ {[%clk 0:00:59.2]} 39... Kf8 {[%clk 0:00:03.8]} 40. Qd8+ {[%clk
0:00:59.5]} 40... Kg7 {[%clk 0:00:04]} 41. Qg5+ {[%clk 0:00:58.8]} 41... Kh8
{[%clk 0:00:03.5]} 42. Qh6+ {[%clk 0:00:45.5]} 42... Kg8 {[%clk 0:00:04]} 43.
Qg5+ {[%clk 0:00:37.8]} 43... Kf8 {[%clk 0:00:04.2]} 44. Qd8+ {[%clk 0:00:35.6]}
44... Kg7 {[%clk 0:00:04.5]} 45. e4 {[%clk 0:00:34.3]} 45... Qf6 {[%clk
0:00:03.8]} 46. Qc7 {[%clk 0:00:31.8]} 46... Qh4+ {[%clk 0:00:04.1]} 47. Kg1
{[%clk 0:00:31.5]} 47... Qe1+ {[%clk 0:00:04.3]} 48. Kh2 {[%clk 0:00:31.9]}
48... Qh4+ {[%clk 0:00:04.8]} 49. Bh3 {[%clk 0:00:32.3]} 49... Qf2+ {[%clk
0:00:04.9]} 50. Kh1 {[%clk 0:00:31.9]} 50... Qf3+ {[%clk 0:00:04.9]} 51. Bg2
{[%clk 0:00:32]} 51... Qd1+ {[%clk 0:00:05.2]} 52. Kh2 {[%clk 0:00:32.5]} 52...
Qh5+ {[%clk 0:00:06.1]} 53. Kg1 {[%clk 0:00:33.1]} 53... Qc5+ {[%clk 0:00:05.6]}
54. Kh2 {[%clk 0:00:33.3]} 54... Qh5+ {[%clk 0:00:05.6]} 55. Kg3 {[%clk
0:00:33.9]} 55... Qg6+ {[%clk 0:00:05.5]} 56. Kf3 {[%clk 0:00:34.5]} 56... Qh5+
{[%clk 0:00:06]} 57. Ke3 {[%clk 0:00:35]} 57... Qc5+ {[%clk 0:00:06.1]} 58. Ke2
{[%clk 0:00:33.3]} 58... a4 {[%clk 0:00:04.9]} 59. e5 {[%clk 0:00:32.9]} 59...
Qc2+ {[%clk 0:00:04.9]} 60. Kf3 {[%clk 0:00:32.5]} 60... Qd3+ {[%clk 0:00:05.4]}
61. Kf2 {[%clk 0:00:32.7]} 61... Qd4+ {[%clk 0:00:05.1]} 62. Kf3 {[%clk
0:00:33.1]} 62... Kg6 {[%clk 0:00:05.6]} 63. Kg3 {[%clk 0:00:31]} 63... Qe3+
{[%clk 0:00:05.2]} 64. Bf3 {[%clk 0:00:30.9]} 64... Qg1+ {[%clk 0:00:05.9]} 65.
Bg2 {[%clk 0:00:30.6]} 65... Qe1+ {[%clk 0:00:05.6]} 66. Kh2 {[%clk 0:00:29.4]}
66... Qh4+ {[%clk 0:00:05.1]} 67. Bh3 {[%clk 0:00:29.9]} 67... Qxf4+ {[%clk
0:00:05.1]} 68. Kg1 {[%clk 0:00:27.1]} 68... Qg3+ {[%clk 0:00:05.2]} 69. Bg2
{[%clk 0:00:27.6]} 69... Qe3+ {[%clk 0:00:05.8]} 70. Kh2 {[%clk 0:00:27.7]}
70... Qf4+ {[%clk 0:00:06.2]} 71. Kg1 {[%clk 0:00:28.1]} 71... Qd4+ {[%clk
0:00:06.3]} 72. Kh2 {[%clk 0:00:28.5]} 72... Be6 {[%clk 0:00:05.7]} 73. Qb8
{[%clk 0:00:26]} 73... Qh4+ {[%clk 0:00:05.6]} 74. Kg1 {[%clk 0:00:25.8]} 74...
Qe7 {[%clk 0:00:06.5]} 75. Be4+ {[%clk 0:00:24.8]} 75... Kg7 {[%clk 0:00:06]}
76. Kf2 {[%clk 0:00:19.5]} 76... a3 {[%clk 0:00:04.5]} 77. Qa7 {[%clk
0:00:19.4]} 77... a2 {[%clk 0:00:04.4]} 78. Bf3 {[%clk 0:00:16.4]} 78... Qh4+
{[%clk 0:00:04.4]} 79. Kg2 {[%clk 0:00:16.3]} 79... Qh3+ {[%clk 0:00:04.4]} 80.
Kf2 {[%clk 0:00:16.5]} 80... Qh2+ {[%clk 0:00:05]} 81. Bg2 {[%clk 0:00:15.8]}
81... Qf4+ {[%clk 0:00:05.6]} 82. Bf3 {[%clk 0:00:15.7]} 82... Qd2+ {[%clk
0:00:06.2]} 83. Be2 {[%clk 0:00:15.7]} 83... Qb2 {[%clk 0:00:06.4]} 84. Qb8
{[%clk 0:00:13.8]} 84... a1=Q {[%clk 0:00:06.6]} 85. Qc7+ {[%clk 0:00:14.4]}
85... Kg6 {[%clk 0:00:07.1]} 86. Qd8 {[%clk 0:00:13.8]} 86... Qd4+ {[%clk
0:00:07.3]} 87. Kg2 {[%clk 0:00:13.4]} 87... Qxd8 {[%clk 0:00:07.1]} 0-1

[Event "Early-Titled-Tuesday-Blitz-November-28-2023"]
[Site "Chess.com"]
[Date "2023.11.28"]
[Round "11"]
[White "Lady_Nika"]
[Black "olksuna"]
[Result "1/2-1/2"]
[WhiteElo "2580"]
[BlackElo "2703"]
[TimeControl "180+1"]
[EndTime "10:13:30 PST"]
[Termination "Game drawn - insufficient material"]

1. e4 {[%clk 0:03:00.9]} 1... e5 {[%clk 0:02:55.3]} 2. Nf3 {[%clk 0:03:00.8]}
2... Nc6 {[%clk 0:02:55.6]} 3. Bb5 {[%clk 0:03:01]} 3... a6 {[%clk 0:02:55.4]}
4. Bxc6 {[%clk 0:03:01]} 4... dxc6 {[%clk 0:02:55.3]} 5. O-O {[%clk 0:03:01.9]}
5... Qf6 {[%clk 0:02:55.1]} 6. h3 {[%clk 0:03:00.1]} 6... Ne7 {[%clk 0:02:48.2]}
7. d4 {[%clk 0:02:59.4]} 7... exd4 {[%clk 0:02:46.8]} 8. Qxd4 {[%clk 0:02:48]}
8... Qxd4 {[%clk 0:02:46.3]} 9. Nxd4 {[%clk 0:02:47.9]} 9... h5 {[%clk
0:02:43.4]} 10. Nc3 {[%clk 0:02:47.7]} 10... h4 {[%clk 0:02:43.6]} 11. Be3
{[%clk 0:02:47.3]} 11... Ng6 {[%clk 0:02:39.5]} 12. f4 {[%clk 0:02:47.3]} 12...
Bb4 {[%clk 0:02:39.1]} 13. Nce2 {[%clk 0:02:45.8]} 13... Bd7 {[%clk 0:02:36.2]}
14. c3 {[%clk 0:02:45.5]} 14... Ba5 {[%clk 0:02:36]} 15. Nf3 {[%clk 0:02:42.1]}
15... O-O-O {[%clk 0:02:30.4]} 16. f5 {[%clk 0:02:42]} 16... Ne7 {[%clk
0:02:31]} 17. Ne5 {[%clk 0:02:41.6]} 17... Be8 {[%clk 0:02:29.8]} 18. Rad1
{[%clk 0:02:40.3]} 18... Rxd1 {[%clk 0:02:27.1]} 19. Rxd1 {[%clk 0:02:40]} 19...
Bb6 {[%clk 0:02:24.7]} 20. Bxb6 {[%clk 0:02:35.3]} 20... cxb6 {[%clk 0:02:25.6]}
21. Nd4 {[%clk 0:02:18.1]} 21... Rh6 {[%clk 0:02:14.3]} 22. Ndf3 {[%clk
0:02:14.5]} 22... f6 {[%clk 0:02:01.9]} 23. Nc4 {[%clk 0:02:12.2]} 23... Kc7
{[%clk 0:01:57.5]} 24. Nd6 {[%clk 0:02:02]} 24... Bh5 {[%clk 0:01:46.8]} 25. Kf2
{[%clk 0:02:01.8]} 25... Rh8 {[%clk 0:01:45.1]} 26. Nc4 {[%clk 0:01:58.3]} 26...
g6 {[%clk 0:01:43.3]} 27. fxg6 {[%clk 0:01:39.6]} 27... Nxg6 {[%clk 0:01:44.2]}
28. Rd2 {[%clk 0:01:19.3]} 28... Bxf3 {[%clk 0:01:36.9]} 29. Kxf3 {[%clk
0:01:15.3]} 29... b5 {[%clk 0:01:36.6]} 30. Ne3 {[%clk 0:01:14.9]} 30... Ne5+
{[%clk 0:01:36.7]} 31. Kf2 {[%clk 0:01:15.2]} 31... a5 {[%clk 0:01:24]} 32. Kf1
{[%clk 0:00:47]} 32... b4 {[%clk 0:01:19.6]} 33. Rf2 {[%clk 0:00:41.8]} 33...
bxc3 {[%clk 0:01:13.3]} 34. bxc3 {[%clk 0:00:40.8]} 34... Nd7 {[%clk 0:01:05.6]}
35. Ng4 {[%clk 0:00:40]} 35... Re8 {[%clk 0:01:03.6]} 36. Rf4 {[%clk 0:00:37]}
36... Kb6 {[%clk 0:00:53.4]} 37. Kf2 {[%clk 0:00:35.9]} 37... Re6 {[%clk
0:00:44.3]} 38. Kf3 {[%clk 0:00:26.3]} 38... Kb5 {[%clk 0:00:41.9]} 39. Ke3
{[%clk 0:00:16]} 39... a4 {[%clk 0:00:32.4]} 40. Kd4 {[%clk 0:00:14.5]} 40...
Rd6+ {[%clk 0:00:30.6]} 41. Ke3 {[%clk 0:00:14.6]} 41... a3 {[%clk 0:00:31.1]}
42. Nh6 {[%clk 0:00:08.2]} 42... Nc5 {[%clk 0:00:30.6]} 43. Nf7 {[%clk 0:00:06]}
43... Rd3+ {[%clk 0:00:30.3]} 44. Ke2 {[%clk 0:00:06.4]} 44... Rxc3 {[%clk
0:00:28.4]} 45. Kd2 {[%clk 0:00:06.7]} 45... Rg3 {[%clk 0:00:26.5]} 46. Nd6+
{[%clk 0:00:06.3]} 46... Kb6 {[%clk 0:00:24.9]} 47. Rf2 {[%clk 0:00:05.7]} 47...
Kc7 {[%clk 0:00:22.9]} 48. Ne8+ {[%clk 0:00:05.8]} 48... Kd8 {[%clk 0:00:22.5]}
49. Nxf6 {[%clk 0:00:06.7]} 49... Ke7 {[%clk 0:00:17.4]} 50. e5 {[%clk
0:00:06.5]} 50... Ke6 {[%clk 0:00:16.9]} 51. Re2 {[%clk 0:00:02.8]} 51... Nd3
{[%clk 0:00:12.6]} 52. Ng4 {[%clk 0:00:02.3]} 52... Nf4 {[%clk 0:00:11.4]} 53.
Rf2 {[%clk 0:00:02.6]} 53... Rxg2 {[%clk 0:00:11.3]} 54. Ke3 {[%clk 0:00:01.8]}
54... Rxf2 {[%clk 0:00:09.8]} 55. Nxf2 {[%clk 0:00:02.7]} 55... Ng6 {[%clk
0:00:07.2]} 56. Ke4 {[%clk 0:00:02.6]} 56... Nxe5 {[%clk 0:00:06.8]} 57. Kf4
{[%clk 0:00:03.2]} 57... Nf7 {[%clk 0:00:04.8]} 58. Kg4 {[%clk 0:00:03.8]} 58...
Nd6 {[%clk 0:00:05.2]} 59. Kxh4 {[%clk 0:00:04.3]} 59... Nb5 {[%clk 0:00:06]}
60. Kg4 {[%clk 0:00:04.8]} 60... Nc3 {[%clk 0:00:06.3]} 61. Nd3 {[%clk
0:00:05.3]} 61... Nxa2 {[%clk 0:00:06.6]} 62. h4 {[%clk 0:00:06]} 62... Nc3
{[%clk 0:00:06.9]} 63. Nc1 {[%clk 0:00:05.2]} 63... a2 {[%clk 0:00:07.4]} 64.
Nb3 {[%clk 0:00:05.6]} 64... Kf6 {[%clk 0:00:05.5]} 65. Kf3 {[%clk 0:00:06]}
65... c5 {[%clk 0:00:05.8]} 66. Ke3 {[%clk 0:00:06]} 66... c4 {[%clk 0:00:06.2]}
67. Na1 {[%clk 0:00:06.2]} 67... b5 {[%clk 0:00:06.5]} 68. Kd4 {[%clk
0:00:06.6]} 68... Nd1 {[%clk 0:00:05.9]} 69. Kc5 {[%clk 0:00:06.7]} 69... Nc3
{[%clk 0:00:05.4]} 70. Kb4 {[%clk 0:00:06.9]} 70... Ne2 {[%clk 0:00:03.4]} 71.
Kxb5 {[%clk 0:00:07.4]} 71... c3 {[%clk 0:00:04]} 72. Kb4 {[%clk 0:00:07.7]}
72... Ke5 {[%clk 0:00:03.6]} 73. Kb3 {[%clk 0:00:07.7]} 73... Kd4 {[%clk
0:00:04]} 74. Kxa2 {[%clk 0:00:08.2]} 74... Kd3 {[%clk 0:00:04.4]} 75. h5 {[%clk
0:00:08.6]} 75... Nf4 {[%clk 0:00:03.8]} 76. h6 {[%clk 0:00:08.8]} 76... Ng6
{[%clk 0:00:04.5]} 77. Kb3 {[%clk 0:00:09.1]} 77... Ke3 {[%clk 0:00:03.4]} 78.
h7 {[%clk 0:00:09.1]} 78... Kf4 {[%clk 0:00:04.3]} 79. Kxc3 {[%clk 0:00:09]}
79... Nh8 {[%clk 0:00:05.2]} 80. Kd4 {[%clk 0:00:09.4]} 80... Kg5 {[%clk
0:00:06.1]} 81. Ke5 {[%clk 0:00:09.7]} 81... Kh6 {[%clk 0:00:07]} 82. Nb3 {[%clk
0:00:10.2]} 82... Kxh7 {[%clk 0:00:07.9]} 1/2-1/2